Cogmind - Beta 16 *** ADVENTURER MODE // 2025.12.26 @ 13:06:24 Player: SuDmit Result: Destroyed by H-55 Commando with Gauss Rifle Performance ------------- Evolutions (2) 1000 Regions Visited (6) 1200 Robots Destroyed (58) 290 Value Destroyed (1690) 1690 Prototype IDs (24) 480 Alien Tech Used (0) 0 Bonus (354) 354 TOTAL SCORE: 5014 Bonus ------- Follower Combat Kills 54 Aligned with FarCom 300 Cogmind --------- Core Integrity 0/550 Matter 275/300 Energy 42/100 System Corruption 0% Temperature Cool (0) Movement Walking (120) Location -8/Storage Parts ------- > --- POWER (1) -------- (None) > --- PROPULSION (3) --- Aluminum Leg > --- UTILITY (5) ------ Hacking Suite Trap Reconfigurator > --- WEAPON (2) ------- (None) > --- INVENTORY (5) ---- Compact Matter Pod (109) Improved Terrain Scanner Datajack Peak State ------------ > --- POWER ------------ Light Deuterium Engine > --- PROPULSION ------- Aluminum Leg Carbon-fiber Leg Cesium-ion Thruster > --- UTILITY ---------- Weight Redist. System Hacking Suite System Shield Trap Reconfigurator Thief Drone Bay > --- WEAPON ----------- Katana Katana > --- INVENTORY -------- Light Nuclear Core Compact Matter Pod Light Assault Rifle Grenade Launcher Datajack [Rating: 40] Favorites ----------- Power Light Angular Momentum Engine Engine Light Angular Momentum Engine Power Core Light Nuclear Core Propulsion Carbon-fiber Leg Leg Carbon-fiber Leg Wheel Wheel Flight Unit Cesium-ion Thruster Utility Small Storage Unit Device Thief Drone Bay Storage Small Storage Unit Processor Machine Analyzer Hackware Hacking Suite Weapon Light Assault Rifle Energy Gun Particle Gun Ballistic Gun Light Assault Rifle Launcher Grenade Launcher Slashing Weapon Katana Special Melee Weapon Datajack Build | -11 -10 -10 -10 -9 -8 -8 ------- Run | Yrd Mat Min Exi Min Mat Sto Slots Evolved 4 | . . . . . 4 . Power . | . . . . . . . Propulsion 1 | . . . . . 1 . Utility 3 | . . . . . 3 . Weapon . | . . . . . . . Parts Attached 52 | 5 10 7 1 7 19 3 Power 11 | 1 3 2 . 1 3 1 Engine 6 | 1 2 1 . . 1 1 Core 5 | . 1 1 . 1 2 . Reactor . | . . . . . . . Propulsion 13 | 2 1 2 . 1 6 1 Treads . | . . . . . . . Leg 6 | . . 2 . 1 2 1 Wheel 3 | 2 1 . . . . . Hover . | . . . . . . . Flight 4 | . . . . . 4 . Utility 14 | . 2 1 1 1 8 1 Device 8 | . . 1 1 1 4 1 Storage 3 | . 2 . . . 1 . Processor 1 | . . . . . 1 . Hackware 2 | . . . . . 2 . Protection . | . . . . . . . Artifact . | . . . . . . . Weapon 14 | 2 4 2 . 4 2 . Energy Gun 4 | 1 1 2 . . . . Energy Cannon . | . . . . . . . Ballistic Gun 6 | 1 2 . . 3 . . Ballistic Cannon . | . . . . . . . Launcher 1 | . . . . 1 . . Special Weapon . | . . . . . . . Impact Weapon . | . . . . . . . Slashing Weapon 2 | . . . . . 2 . Piercing Weapon . | . . . . . . . Special Melee Weapon 1 | . 1 . . . . . Unidentified Prototypes 1 | . . 1 . . . . Parts Lost 28 | . 2 2 . 3 10 11 Power 5 | . 1 . . . 1 3 Propulsion 10 | . 1 1 . 1 5 2 Utility 6 | . . . . . 3 3 Weapon 7 | . . 1 . 2 1 3 Highest Loss Streak 9 | . 2 1 . 3 5 9 To Critical Strikes . | . . . . . . . Average Backups 6 | 1 4 7 7 7 5 4 Power 1 | . 1 2 2 . . . Propulsion . | . . . . . . . Utility 1 | . . 1 2 4 2 2 Weapon 2 | . 2 3 2 1 1 1 Tool/Special . | . . . . . . . Unused Backups 5 | . . . . 3 1 1 Power 1 | . . . . 1 . . Propulsion 1 | . . . . 1 . . Utility 2 | . . . . . 1 1 Weapon 1 | . . . . 1 . . Tool/Special . | . . . . . . . Average Slot Usage (%) 95 | . 97 94 100 98 91 78 Engine 8 | . 9 13 14 1 2 . Core 3 | . 4 . . 12 5 8 Leg 16 | . . 13 28 27 14 . Wheel 6 | . 27 9 . . . . Flight 2 | . . . . . 10 9 Device 12 | . . 4 12 13 29 19 Storage 15 | . 26 23 15 14 2 6 Hackware 2 | . . . . . 11 9 Energy Gun 12 | . 4 20 28 . . . Ballistic Gun 10 | . 21 7 . 24 10 . Slashing Weapon 1 | . . . . . 4 11 Peak Build Rating 40 | 5 9 24 27 23 40 31 Average Rating 19 | 2 7 14 23 14 31 29 On Entrance 14 | . 5 8 24 20 14 31 Avg Prop Armor Cover (%) 5 | . . . . . 5 . Naked Turns . | . . . . . . . Heaviest Build 26 | 6 18 26 26 26 18 12 Greatest Support 31 | 20 26 26 25 25 31 17 Greatest Overweight (x) 1 | 1 1 1 1 1 1 1 Average Overweight (x) . | . . . . . . . Largest Inventory Capacity 8 | 5 8 8 8 8 8 5 Average Capacity 7 | 5 7 8 8 8 5 5 Most Carried 8 | 3 8 8 8 8 7 5 Average Carried 6 | 1 4 7 7 7 5 4 Final Capacity 8 | 5 8 8 8 8 5 5 Final Carried 8 | 3 8 7 8 8 5 3 Class Distribution -------------------- 48% | Scavenger-Mutant 29% | Mutant 21% | Hacker-Mutant Dominant Class ---------------- Mutant | -10/Materials Mutant | -10/Mines Scavenger-Mutant | -10/Exiles Scavenger-Mutant | -9/Mines Hacker-Mutant | -8/Materials Hacker-Mutant | -8/Storage Resources | -11 -10 -10 -10 -9 -8 -8 ----------- Run | Yrd Mat Min Exi Min Mat Sto Matter Collected 1398 | 238 319 151 . 138 453 99 Remotely . | . . . . . . . Salvage Created 1791 | . 270 340 . 177 711 293 Parts 101 | . 21 17 . 17 33 13 Haulers Intercepted 1 | . 1 . . . . . Recyclers Shooed 1 | . . . . . . 1 Parts Field Recycled . | . . . . . . . Retrieved Matter . | . . . . . . . Parts Self-Destructed . | . . . . . . . Prevented . | . . . . . . . Parts Restored . | . . . . . . . Kills | -11 -10 -10 -10 -9 -8 -8 ------- Run | Yrd Mat Min Exi Min Mat Sto Combat Hostiles Destroyed 52 | . 10 9 . 9 15 9 Melee 14 | . . . . . 8 6 Guns 29 | . 7 9 . 6 7 . AOE 9 | . 3 . . 3 . 3 Classes Destroyed 7 | . 4 1 . . 2 . Hauler 1 | . 1 . . . . . Recycler 1 | . . 1 . . . . Mechanic 1 | . . . . . 1 . Watcher 3 | . 1 . . . 1 1 Swarmer 21 | . 6 3 . 6 2 4 Grunt 28 | . 4 6 . 3 11 4 Sentry 3 | . . . . . 2 1 Best Kill Streak 6 | . 5 4 . 4 4 6 Combat Bots Only 6 | . 5 4 . 4 4 6 Max Kills in Single Turn 3 | . 2 2 . 3 2 1 Gunslinging . | . . . . . . . Exploded 3 | . 2 . . 3 . 1 Melee 2 | . . . . . 2 1 Uniques/NPCs Destroyed . | . . . . . . . Combat | -11 -10 -10 -10 -9 -8 -8 -------- Run | Yrd Mat Min Exi Min Mat Sto Hostile Shots Fired 408 | . 56 39 . 86 131 96 Missed 96 | . 17 7 . 12 39 21 Hits 312 | . 39 32 . 74 92 75 Projectile 312 | . 39 32 . 74 92 75 Critical Strikes 9 | . . 1 . 1 4 3 Damage Taken 2854 | . 362 296 . 539 870 787 Core 779 | . 78 46 . 96 153 406 Absorbed by Shields 45 | . . . . . 45 . Ignored by Resistances 879 | . 116 94 . 174 270 225 Regen/Repaired (Parts) 17 | . . . . . 17 . Core Remaining (%) 56 | 100 . . . 12 . . Volleys Fired 120 | . 21 20 . 22 47 10 Largest 2 | . 2 2 . 2 2 1 Hottest 140 | . 60 140 . 140 43 30 Shots Fired 184 | . 42 36 . 25 71 10 Gun 173 | . 42 36 . 24 71 . Cannon . | . . . . . . . Launcher 11 | . . . . 1 . 10 Special . | . . . . . . . Kinetic 135 | . 35 13 . 16 71 . Thermal 31 | . . 23 . 8 . . Explosive 11 | . . . . 1 . 10 Electromagnetic 7 | . 7 . . . . . Robot Hit Streak 27 | . 11 13 . 15 27 1 Robot Miss Streak 4 | . 4 2 . 3 3 1 Penetration Max . | . . . . . . . Secondary Targets 7 | . 2 3 . . 2 . Max Gunslinging Chain 1 | . 1 1 . . 1 . Shots Hit Robots 169 | . 26 27 . 18 82 16 Core Hits 109 | . 19 14 . 15 40 21 Critical Kills . | . . . . . . . Critical Parts Destroyed 1 | . . . . . 1 . Critical Strikes 4 | . . 1 . . 3 . Burn 1 | . . 1 . . . . Destroy 1 | . . . . . 1 . Sever 2 | . . . . . 2 . Melee Attacks 55 | . 4 . . . 33 18 Impact . | . . . . . . . Slashing 48 | . . . . . 30 18 Piercing . | . . . . . . . Sneak Attacks 5 | . 3 . . . 2 . Combat Hostiles . | . . . . . . . Follow-up Attacks 7 | . . . . . 4 3 Damage Inflicted 3611 | . 547 324 . 336 1436 968 Guns 1392 | . 214 324 . 194 660 . Cannons . | . . . . . . . Explosions 922 | . 333 . . 139 . 450 Melee 1294 | . . . . . 776 518 Ramming 3 | . . . . 3 . . Kinetic 1040 | . 181 79 . 120 660 . Thermal 339 | . 20 245 . 74 . . Explosive 902 | . 313 . . 139 . 450 Electromagnetic 33 | . 33 . . . . . Impact . | . . . . . . . Slashing 1294 | . . . . . 776 518 Piercing . | . . . . . . . Highest Corruption . | . . . . . . . Average Corruption . | . . . . . . . Corruption Purged . | . . . . . . . Corruption Blocked . | . . . . . . . Overload Shots . | . . . . . . . Overflow Damage 112 | . 35 . . . 27 50 Projectiles . | . . . . . . . Explosions 56 | . 35 . . . . 21 Melee 56 | . . . . . 27 29 Knockbacks . | . . . . . . . Impact . | . . . . . . . Kinetic . | . . . . . . . Secondary . | . . . . . . . Self-Inflicted Damage 126 | . 79 . . . . 47 Shots 4 | . 2 . . . . 2 Rammed . | . . . . . . . Targets Rammed 1 | . . . . 1 . . Kicked 1 | . . . . 1 . . Crushed . | . . . . . . . Highest Temperature 281 | . 60 252 . 281 54 2 Average Temperature 73 | . 22 88 . 112 20 2 Received Heat Transfer 1452 | . 120 216 . 219 510 387 Effects 4 | . . 1 . 3 . . Energy Bleed 2 | . . . . 2 . . Interference 2 | . . 1 . 1 . . Siege Activations . | . . . . . . . Martial Activations . | . . . . . . . Shielding Activations . | . . . . . . . Robots Disrupted . | . . . . . . . Combat Hostiles . | . . . . . . . Robots Corrupted . | . . . . . . . Combat Hostiles . | . . . . . . . Parts Fried 1 | . . . . . 1 . Impact Corruptions . | . . . . . . . Robots Melted . | . . . . . . . Combat Hostiles . | . . . . . . . Parts Melted 2 | . . 2 . . . . Heat Transferred 790 | . 50 592 . 148 . . Parts Sabotaged . | . . . . . . . Parts Stolen . | . . . . . . . Parts Stripped . | . . . . . . . Power Chain Reactions 1 | . 1 . . . . . Alert | -11 -10 -10 -10 -9 -8 -8 ------- Run | Yrd Mat Min Exi Min Mat Sto Maximum Alert Level 1 | . . . . . . 1 Low Security (%) 99 | 100 100 100 . 100 100 82 Level 1 . | . . . . . . 18 Level 2 . | . . . . . . . Level 3 . | . . . . . . . Level 4 . | . . . . . . . Level 5 . | . . . . . . . High Security . | . . . . . . . Max Security . | . . . . . . . Peak Influence 257 | . 110 85 . 104 189 257 Initial 29 | . . . . . . 29 Average 32 | . 33 14 . 34 36 110 Influence Increases 1844 | . 370 245 . 278 543 408 Destroy 0b10 Robot/C 1120 | . 200 180 . 220 340 180 Destroy 0b10 Robot/NC 35 | . 10 5 . . 15 5 Destroy Leader 230 | . 44 30 . 30 84 42 Allied During Kill 2 | . . . . . 2 . Trap Triggered on 0b10 30 | . . . . . 30 . Successful Hack 73 | . 33 . . . 23 17 Select Force Hacks 30 | . . . . . 30 . Disable Machine 45 | . 36 . . 9 . . Destroy Structure 84 | . 32 . . 4 4 44 Lose Combat Pursuer 195 | . 15 30 . 15 15 120 Influence Decreases 1617 | . 370 245 . 278 461 263 Entered New Map 53 | . . . . . . 53 Time Decay 1267 | . 350 235 . 248 334 100 Lost Part 257 | . 20 10 . 30 87 110 Lost Ally 40 | . . . . . 40 . Squads Dispatched 10 | . 2 1 . . 3 4 Investigation 7 | . 2 . . . 3 2 Extermination . | . . . . . . . Reinforcement 1 | . . . . . . 1 Assault 1 | . . 1 . . . . Garrison 1 | . . . . . . 1 Intercept . | . . . . . . . Searches Triggered . | . . . . . . . Construction Impeded 1 | . . . . . . 1 Haulers Reinforced . | . . . . . . . Active Scanning Responses . | . . . . . . . Cargo Convoy Interrupts . | . . . . . . . Stealth | -11 -10 -10 -10 -9 -8 -8 --------- Run | Yrd Mat Min Exi Min Mat Sto Distress Signals 6 | . 1 . . . 3 2 Communications Jammed . | . . . . . . . Distress Signals . | . . . . . . . Times Spotted 95 | . 18 11 . 11 32 23 Peak Tracking Total 11 | . 4 4 . 7 7 11 Tactical Retreats 8 | . 1 2 . 1 1 3 Traps | -11 -10 -10 -10 -9 -8 -8 ------- Run | Yrd Mat Min Exi Min Mat Sto Traps Triggered 3 | . 2 . . . . 1 Indirectly . | . . . . . . . Trap Hack Attempts . | . . . . . . . Triggered . | . . . . . . . Disarmed . | . . . . . . . Reprogrammed . | . . . . . . . Reused 3 | . . . . . 3 . Traps Reconfigurated 10 | . . . . . 10 . Traps Extracted . | . . . . . . . Installed . | . . . . . . . Triggered 3 | . . . . . 3 . Machines | -11 -10 -10 -10 -9 -8 -8 ---------- Run | Yrd Mat Min Exi Min Mat Sto Machines Disabled 5 | . 4 . . 1 . . Max in Single Turn 3 | . 3 . . 1 . . Machines Repaired . | . . . . . . . Machines Dismantled . | . . . . . . . Machines Sabotaged . | . . . . . . . Overloaded Fab Kills . | . . . . . . . Hacking | -11 -10 -10 -10 -9 -8 -8 --------- Run | Yrd Mat Min Exi Min Mat Sto Machines Accessed 27 | . 8 1 3 . 12 3 Terminals 17 | . 7 . . . 7 3 Fabricators . | . . . . . . . Repair Stations 1 | . . . . . 1 . Recycling Units 3 | . 1 . . . 2 . Scanalyzers 2 | . . . . . 2 . Garrison Access . | . . . . . . . Total Hacks 103 | . 29 1 18 . 44 11 Successful 81 | . 19 1 18 . 38 5 Failed 21 | . 10 . . . 5 6 Catastrophic 2 | . . . . . 1 1 Database Lockouts 1 | . . . . . 1 . Manual 66 | . 25 . 3 . 27 11 Terminals 70 | . 25 . . . 34 11 Fabricators . | . . . . . . . Repair Stations 2 | . . . . . 2 . Recycling Units 8 | . 4 . . . 4 . Scanalyzers 4 | . . . . . 4 . Garrison Access . | . . . . . . . Terminal Hacks 45 | . 8 1 18 . 17 1 Record 17 | . . . 17 . . . Robot Analysis 5 | . 4 . . . 1 . Open Door 1 | . . 1 . . . . Level Access Points 2 | . 1 . . . 1 . Branch Access Points 3 | . 1 . . . 2 . Emergency Access Points 3 | . 1 . . . 2 . Terminal Index 3 | . 1 . . . 1 1 Scanalyzer Index 1 | . . . . . 1 . Alert Level 1 | . . . . . 1 . Locate Traps 3 | . . . . . 3 . Transport Status 1 | . . . . . 1 . Investigation Status 1 | . . . . . 1 . Hauler Manifests 1 | . . . . . 1 . Registered Components 1 | . . . . . 1 . Zone Layout 1 | . . . . . 1 . Proto ID Catalog 1 | . . . 1 . . . Fabricator Hacks . | . . . . . . . Repair Station Hacks 2 | . . . . . 2 . Scan Component 1 | . . . . . 1 . Repair 1 | . . . . . 1 . Recycling Unit Hacks 3 | . 1 . . . 2 . Report Inventory 2 | . 1 . . . 1 . Retrieve Components 1 | . . . . . 1 . Scanalyzer 2 | . . . . . 2 . Retrieve Study 2 | . . . . . 2 . Garrison Access Hacks . | . . . . . . . Unauthorized Hacks 29 | . 10 . . . 15 4 Terminals 26 | . 10 . . . 12 4 Assimilate 1 | . . . . . 1 . Botnet 17 | . 7 . . . 7 3 Disrupt 2 | . . . . . 2 . Operators 3 | . 1 . . . 1 1 Search 3 | . 2 . . . 1 . Fabricators . | . . . . . . . Repair Stations . | . . . . . . . Recycling Units 2 | . . . . . 2 . Monitor 1 | . . . . . 1 . Recyclers 1 | . . . . . 1 . Scanalyzers 1 | . . . . . 1 . Extract 1 | . . . . . 1 . Garrison Access . | . . . . . . . Data Cores Recovered . | . . . . . . . Used . | . . . . . . . Hacking Detections 16 | . 5 . . . 8 3 Full Trace Events 1 | . . . . . . 1 Feedback Events . | . . . . . . . Feedback Blocked . | . . . . . . . Robot Schematics Acquired . | . . . . . . . Robots Built . | . . . . . . . Authchips . | . . . . . . . Time . | . . . . . . . Total Robot Build Rating . | . . . . . . . Part Schematics Acquired 2 | . . . . . 2 . Parts Built . | . . . . . . . Authchips . | . . . . . . . Time . | . . . . . . . Total Part Build Rating . | . . . . . . . Part Studies Acquired 2 | . . . . . 2 . Parts Repaired 1 | . . . . . 1 . Time 32 | . . . . . 32 . Parts Recycled . | . . . . . . . Recycled Matter . | . . . . . . . Retrieved Matter . | . . . . . . . Retrieved Components 9 | . . . . . 9 . Parts Scanalyzed . | . . . . . . . Part Schematics Acquired . | . . . . . . . Parts Damaged . | . . . . . . . Bothacking | -11 -10 -10 -10 -9 -8 -8 ------------ Run | Yrd Mat Min Exi Min Mat Sto Used RIF Installer . | . . . . . . . Robots Hacked 5 | . 3 . . . 2 . Non-combat 5 | . 3 . . . 2 . Combat . | . . . . . . . Robot Hacks Applied 5 | . 3 . . . 2 . parse_system 3 | . 1 . . . 2 . no_distress 2 | . 2 . . . . . Relay Couplers Released . | . . . . . . . Fabnet Peak Effective % . | . . . . . . . Robots Rewired . | . . . . . . . Allies Hacked . | . . . . . . . Hacks Repelled . | . . . . . . . Allies | -11 -10 -10 -10 -9 -8 -8 -------- Run | Yrd Mat Min Exi Min Mat Sto Total Allies 4 | . . 3 . . 1 . Largest Group 3 | . . 3 1 . 1 . Highest-Rated Group 72 | . . 72 10 . 10 . Highest-Rated Ally 31 | . . 31 10 . 10 . Total Orders 2 | . . 1 . . 1 . RETURN 2 | . . 1 . . 1 . Ally Attacks 75 | . . 10 . 11 54 . Total Damage 395 | . . 123 . 43 229 . Kills 5 | . . . . 2 3 . Allies Corrupted 2 | . . . . . 2 . Allies Melted . | . . . . . . . Intel | -11 -10 -10 -10 -9 -8 -8 ------- Run | Yrd Mat Min Exi Min Mat Sto Active Infowar (turns) 1483 | . . . . 591 696 196 Seismic 1148 | . . . . 591 557 . Machine Analysis 335 | . . . . . 139 196 Robot Analysis Total 5 | . 4 . . . 1 . Derelict Logs Recovered 1 | . . . . 1 . . Drone Launches 18 | . . 1 . 3 14 . Drone Recoveries 15 | . . 1 . 3 11 . Exploration | -11 -10 -10 -10 -9 -8 -8 ------------- Run | Yrd Mat Min Exi Min Mat Sto Turns Passed 5956 | 76 1002 1253 1459 751 1215 200 Spaces Moved 4133 | 64 882 791 774 543 891 188 Core 95 | 27 . . . . . 68 Treads . | . . . . . . . Legs 1947 | . . 267 774 543 361 2 Wheels 1443 | 37 882 524 . . . . Hover . | . . . . . . . Flight 648 | . . . . . 530 118 Fastest Speed 37 | 50 80 90 120 120 37 37 Average Speed 113 | 71 84 134 188 121 70 42 Slowest Speed 190 | 100 100 190 190 190 135 120 Overloaded Moves . | . . . . . . . Propulsion Burnouts . | . . . . . . . Robots Hopped 21 | . . . . . 20 1 Potential Cave-ins . | . . . . . . . Cave-ins Triggered . | . . . . . . . Exploration Rate (%) 68 | 4 94 86 92 95 68 40 Regions Visited 6 Branch Regions 4 Pre-discovered Areas . | . . . . . . . Known Exits Taken 2 | . 1 . . . 1 . Unknown Exits Taken 4 | 1 . 1 1 1 . . Scrap Searched 2 | . . . . 2 . . Spaces Dug 4 | . . . . . 4 . Terrain Destroyed 89 | . 30 . . 4 4 51 Melee 4 | . . . . . 4 . Projectile . | . . . . . . . AOE 85 | . 30 . . 4 . 51 Terrain Rammed . | . . . . . . . Walls Destroyed . | . . . . . . . Machines Disabled . | . . . . . . . Actions | -11 -10 -10 -10 -9 -8 -8 --------- Run | Yrd Mat Min Exi Min Mat Sto Total 5148 | 91 1093 952 776 607 1357 272 Wait 756 | 20 163 128 . 22 369 54 Move 4088 | 63 881 790 773 542 853 186 Hop 18 | . . . . . 17 1 Pick Up 18 | 3 6 1 1 3 4 . Fast Attach 33 | 5 7 3 . 2 14 2 Attach 11 | . 2 . . 1 6 2 Detach 5 | . . . . . 5 . Swap 28 | . 7 4 2 9 3 3 Drop 23 | . 2 6 . 5 10 . Fire 120 | . 21 20 . 22 47 10 Melee 47 | . 4 . . . 29 14 Ram . | . . . . . . . Kick 1 | . . . . 1 . . Crush . | . . . . . . . Escape Stasis . | . . . . . . . Rewire . | . . . . . . . Trap . | . . . . . . . Miscellaneous . | . . . . . . . Route ------- -11/Scrapyard -10/Materials (discovered 4 exits: *Mat x3 / *Min) -10/Mines (discovered 2 exits: *Mat / *Exi) -10/Exiles (discovered 2 exits: [*Min x2]) -9/Mines (discovered 2 exits: *Mat x2) -8/Materials (discovered 5 exits: *Fac x3 / *Sto x2) -8/Storage History --------- Turn | Location | Event 40 | -11/Scrapyard | Discovered new exit (range 15) 77 | -11/Scrapyard | Entered Materials 300 | -10/Materials | Discovered new exit (range 15) 308 | -10/Materials | Build established: Mutant 527 | -10/Materials | Identified exit to Mines 704 | -10/Materials | Discovered new exit (range 9) 708 | -10/Materials | Identified exit to Materials 1079 | -10/Materials | Entered Mines 1135 | -10/Mines | Discovered exit to Materials (range 3) 1153 | -10/Mines | Deemed a non-threat by the Exiles lab entrance 1154 | -10/Mines | Discovered new exit (range 5) 1617 | -10/Mines | Met a Derelict testing a Signal Generator 1898 | -10/Mines | Found the Drone Emporium 1964 | -10/Mines | Found Prototype Device 1965 | -10/Mines | Identified Thief Drone Bay 2024 | -10/Mines | Build established: Scavenger-Mutant 2332 | -10/Mines | Entered Exiles 2332 | -10/Exiles | Accompanied by 1 ally 2369 | -10/Exiles | Discovered new exit (range 15) 2391 | -10/Exiles | Met 8R-AWN 2420 | -10/Exiles | Met EX-HEX 2473 | -10/Exiles | Met EX-BIN 2684 | -10/Exiles | Met EX-DEC 2864 | -10/Exiles | Discovered new exit (range 14) 3010 | -10/Exiles | Visited The Gauntlet 3343 | -10/Exiles | Aligned with FarCom system 3345 | -10/Exiles | Given EX-Vault access code 3389 | -10/Exiles | Opened EX-Vault 3626 | -10/Exiles | Found Trap Reconfigurator 3653 | -10/Exiles | Warned to stay clear of 0b10 Research branches 3791 | -10/Exiles | Left Exiles lab with Trap Reconfigurator 3791 | -10/Exiles | Entered Mines 3794 | -9/Mines | Core integrity fell below 50% 3826 | -9/Mines | Core integrity fell below 20% 3830 | -9/Mines | Discovered new exit (range 5) 3850 | -9/Mines | Lost 3 parts (1n2w) 4101 | -9/Mines | Learned 4 Materials zone layouts 4362 | -9/Mines | Discovered new exit (range 4) 4479 | -9/Mines | Found a hidden stash of uninstalled traps 4542 | -9/Mines | Entered Materials 4542 | -8/Materials | Evolved 4 slots: Propulsion x1, Utility x3 4567 | -8/Materials | Central database locked down 4947 | -8/Materials | Build established: Hacker-Mutant 5130 | -8/Materials | Lost 4 parts (1p2u1w) 5333 | -8/Materials | Identified exit to Storage 5591 | -8/Materials | Lost 5 parts (4n1u) 5607 | -8/Materials | Repaired Weight Redist. System? 5623 | -8/Materials | Discovered new exit (range 15) 5684 | -8/Materials | Identified exit to Factory 5757 | -8/Materials | Entered Storage 5856 | -8/Storage | Garrison activated, responded to threat 5941 | -8/Storage | Core integrity fell below 50% 5950 | -8/Storage | Core integrity fell below 20% 5957 | -8/Storage | Destroyed by H-55 Commando with Gauss Rifle Last Messages --------------- 05939_ K-01 Serf destroyed. 05940_ W-25 Informer distress signal alerts nearby ally. 05941_ Katana destroyed. 05942_ Adv. Weight Redist. System destroyed. 05942_ G-50 Soldier destroyed. 05943_ Penetrated by Slug. 05943_ Critical hit (Burn: +37). 05945_ K-01 Serf collects debris. 05945_ R-06 Scavenger collects Flight Unit. 05945_ Katana destroyed. 05947_ Slug penetrates Wall. 05948_ Critical hit (Burn: +37). 05948_ K-01 Serf collects debris. 05949_ Grenade Launcher destroyed. 05949_ Destroyed Grenade Launcher. 05949_ G-47 Trooper destroyed. 05951_ Acquired Lgt. Ion Engine. 05951_ Lgt. Ion Engine destroyed. 05953_ Machine Analyzer destroyed. 05954_ Acquired Aluminum Leg. Map ----- +----------------------------------------------------+ | ????# ###########????# + | | ????# # ####### ### ] | | ????# # + # | | ????# # #####" ## ##?] | | ????# # #???#"T# #?######## | | ????# # #???##### #????????? | | ????# # #???????## * #######??? | | ????# #####"#####???????### +??? | | ????# # "??????# # #??? | | ????# / "??????# #??? | | ????# #?????????# #??? | | ????#########/#####?????????# #??? | | ??????#### [!= ###???????## # / # | | ??????#""" ""#????????# # # + | | ??????#"R T"#????????# # #??? | | ??????#""" """" ""#????????# #? #??? | | ??????#### w"""" ###????????# #? #??? | | ????????# """" #??????????# #?? +??? | | ????????## g"""" #??????????# #???#####??? | | ?????????# #??????????# #??????????? | | ?????????# #???????"""#####??????????? | | ?????????##+##########????"T"???????????????? | | ??????????# g k #???????????????g??????? | | ??????????# #####Y #????????g?????????????? | | ?????????##+## % ##????????g????????????? | | ?????????# g%h[* @ #?????????????????????? | | ?????????#r""" * +?????????????????????? | | ?????????# """ "gY r #?????????????????????? | | ?????????# """""r= #?????????????????????? | | ?????????# + #?????????????????????? | | ?????????#!! # #?????????????????????? | | ?????????#!! # #?????????????????????? | | ?????????# # #?????????????????????? | | ?????????# # #??????????????????"""? | | ?????????### ###### a#??????????????????"R"? | | ???????????###????#g #??????????????????"?"? | | ??????????????????# r#?????????????????????? | | ??????????????????# a #?????????????????????? | | ??????????????????? #?????????????????????? | | ??????????????????? ??????????????????????? | | ??????????????????? ??????????????????????? | | ????????????????????????????????????????????? | | ????????????????????????????????????????????? | | ????????????????????????????????????????????? | | ????????????????????????????????????????????? | | ????????????????????????????????????????????o | | ????????????????????????????????????????????? | | ????????????????????????????????????????????? | | ????????????????????????????????????????????? | | ????????????????????????????????????????????? | +----------------------------------------------------+ Best States ------------- Heat Dissipation 31 Energy Generation 18 Energy Capacity 250 Matter Stores 500 Matter Capacity 500 Sight Range 16 Terrain Scan Density 10 Additional Mass Support 9 Resistance: KI 20 Resistance: TH 20 Resistance: EX 20 Resistance: EM 20 Resistance: I 20 Resistance: S 20 Resistance: P 20 Evasion (%) 62 Offensive Hacking 20 Defensive Hacking 10 Item Schematics ----------------- Core Shielding | -8/Materials | Extracted Sensor Array | -8/Materials | Extracted Robot Schematics ------------------ None Fabricated ------------ Nothing Repaired ---------- Weight Redist. System | 22% | -8/Materials Studied --------- Carbon-fiber Leg | -8/Materials | Hacked Shotgun | -8/Materials | Hacked Alien Tech Used ----------------- None Achievements -------------- DATA ERROR: Steam Global Achievement% For Emergencies Only Item+ Junior Dev Not Today, Chutes Organ Harvest Sixth Sense There's More Where That Came From Challenges ------------ None Game ------ Seed ArmoredNullHarness Manual? 0 Play Time 01:59:56 Cumulative 191.0 hours Start 2025.12.26 @ 09:47:20 End 2025.12.26 @ 13:06:24 Sessions 4 Manual Loads 0 Difficulty Adventurer Special Mode None Game No. 48 Rogue 0 Adventurer 48 Explorer 0 Win Type - Total 2 Types 2/0/0/0/0/0/0/0/0/0 Lore% 37 Gallery% 58 Achievement% 34 Wizard Run 0 Options --------- Layout 0 ASCII 0 Keyboard 1 Movement Numpad Keybinds 1 Fullscreen 1 Font 24/Terminus Map View 76x50 Zoom Use 0% Tactical HUD 1 Map Filters NONE Filters NONE Steam 1 RUN: 02aee114-d60c-4251-87e0-b6627a7c5917